fUSD/lending_fUSD_20260531
["ID","MTS","AMOUNT","RATE_DAILY","PERIOD"]
[423508232,1780175448000,-1226.0,0.00036927,2]
[423508234,1780175448000,-932.0,0.00036927,2]
[423508235,1780175448000,-482.41,0.00036972,30]
[423508236,1780175448000,-1074.08,0.00037,30]
[423508240,1780175448000,-272.17048114,0.000371,30]
[423508233,1780175448000,-3638.0,0.00036927,2]
[423508257,1780175449000,-39470.61474297,0.00037326,2]
[423508258,1780175504000,1406.49,0.0002769,120]
[423508260,1780175798000,-2500.0,0.00012392,2]
[423508262,1780175918000,-215.58360558,0.00012521,2]
[423508263,1780175919000,-215.58360558,0.00013737,2]
[423508265,1780175919000,-84.41639442,0.00013737,2]
[423508264,1780175919000,-215.58360558,0.00012564,2]
[423508266,1780175919000,-131.16721116,0.00013737,2]
[423508267,1780175919000,-168.83278884,0.00013737,2]
[423508268,1780175919000,-46.75081674,0.00013737,2]
[423508270,1780175920000,-215.58360558,0.00012607,2]
[423508269,1780175920000,-215.58360558,0.00013737,2]
[423508271,1780175921000,-37.66557768,0.00013737,2]
[423508272,1780175921000,-177.9180279,0.00013737,2]
[423508273,1780176145000,-3509.49019814,0.000114,2]
[423508279,1780176146000,-347.74014134,0.00014825,2]
[423508278,1780176146000,-250.0,0.00014,2]
[423508277,1780176146000,-300.0,0.00013773,2]
[423508275,1780176146000,-122.0819721,0.00013737,2]
[423508274,1780176146000,-2189.6680847,0.000121,30]
[423508276,1780176146000,-300.0,0.00013737,2]
[423508281,1780176147000,-3456.28378548,0.00014851,2]
[423508280,1780176147000,-53.20641266,0.00014825,2]
[423508284,1780176147000,-2651.54019814,0.00014851,2]
[423508285,1780176147000,-3509.49019814,0.00014851,2]
[423508282,1780176147000,-542.13,0.00014059,2]
[423508283,1780176147000,-315.82,0.00014355,2]
[423508287,1780176149000,-1549.84146024,0.000148,2]
[423508288,1780176149000,-1959.6487379,0.00014841,2]
[423508286,1780176149000,-3509.49019814,0.00014851,2]
[423508292,1780176150000,-215.58360558,0.000114,2]
[423508293,1780176150000,-3293.90659256,0.00014851,2]
[423508289,1780176150000,-500.0,0.00012421,2]
[423508291,1780176150000,-2709.49019814,0.00014851,2]
[423508290,1780176150000,-300.0,0.0001485,2]
[423508294,1780176151000,-3509.49019814,0.00014851,2]
[423508296,1780176152000,-500.0,0.00012099,2]
[423508295,1780176152000,-3509.49019814,0.00014851,2]
[423508297,1780176152000,-500.0,0.00012099,2]
[423508301,1780176152000,-1319.71943105,0.00014851,2]
[423508299,1780176152000,-500.0,0.00012099,2]
[423508300,1780176152000,-189.77076709,0.00012099,2]
[423508298,1780176152000,-500.0,0.00012099,2]
[423508303,1780176153000,-311.58202591,0.000125,2]
[423508304,1780176153000,-3197.90817223,0.00014851,2]
[423508302,1780176153000,-3509.49019814,0.00014851,2]
[423508305,1780176154000,-500.0,0.00013699,2]
[423508306,1780176154000,-500.0,0.00013699,2]
[423508307,1780176154000,-500.0,0.00013699,2]
[423508308,1780176154000,-500.0,0.00013699,2]
[423508310,1780176154000,-1004.3203275,0.00014851,2]
[423508311,1780176154000,-945.82060176,0.00039242,30]
[423508312,1780176154000,-955.06455853,0.00039242,30]
[423508313,1780176154000,-1028.83968624,0.00039242,30]
[423508309,1780176154000,-505.16987064,0.00013699,2]
[423508325,1780176155000,-654.07794462,0.00039242,30]
[423508323,1780176155000,-352.72919921,0.00039242,30]
[423508326,1780176155000,-10892.78306583,0.00039242,30]
[423508330,1780176155000,-176.68710654,0.00039242,30]
[423508327,1780176155000,-16237.93952015,0.00039242,30]
[423508328,1780176155000,-137331.82977715,0.00039242,30]
[423508324,1780176155000,-292.35565555,0.00039242,30]
[423508329,1780176155000,-509.34992571,0.00039242,30]
[423508322,1780176155000,-506.44086252,0.00039242,30]
[423508346,1780176155000,-1000.0,0.00039242,60]
[423508320,1780176155000,-260.60015873,0.00039242,30]
[423508319,1780176155000,-997.0,0.00039242,30]
[423508318,1780176155000,-12463.23822825,0.00039242,30]
[423508317,1780176155000,-845.69273318,0.00039242,30]
[423508316,1780176155000,-385.46528242,0.00039242,30]
[423508315,1780176155000,-1063.17542423,0.00039242,30]
[423508314,1780176155000,-227.80810948,0.00039242,30]
[423508332,1780176155000,-549.0,0.00039242,30]
[423508321,1780176155000,-977.18000602,0.00039242,30]
[423508333,1780176155000,-1000.0,0.00039242,30]
[423508353,1780176155000,-498.61,0.00039242,30]
[423508334,1780176155000,-1000.0,0.00039242,30]
[423508351,1780176155000,-498.61,0.00039242,30]
[423508352,1780176155000,-498.61,0.00039242,30]
[423508350,1780176155000,-70000.0,0.00039242,30]
[423508347,1780176155000,-1000.0,0.00039242,60]
[423508349,1780176155000,-1000.0,0.00039242,30]
[423508331,1780176155000,-869.10698667,0.00039242,30]
[423508343,1780176155000,-1000.0,0.00039242,30]
[423508345,1780176155000,-1000.0,0.00039242,60]
[423508348,1780176155000,-1000.0,0.00039242,30]
[423508342,1780176155000,-1000.0,0.00039242,60]
[423508344,1780176155000,-1000.0,0.00039242,60]
[423508337,1780176155000,-1000.0,0.00039242,30]
[423508336,1780176155000,-1000.0,0.00039242,30]
[423508338,1780176155000,-1000.0,0.00039242,60]
[423508335,1780176155000,-1000.0,0.00039242,30]
[423508341,1780176155000,-1000.0,0.00039242,30]
[423508339,1780176155000,-1000.0,0.00039242,60]
[423508340,1780176155000,-1000.0,0.00039242,30]
[423508374,1780176156000,-498.61,0.00039242,30]
[423508372,1780176156000,-498.61,0.00039242,30]
[423508371,1780176156000,-498.61,0.00039242,30]
[423508369,1780176156000,-498.61,0.00039242,30]
[423508368,1780176156000,-498.61,0.00039242,30]
[423508367,1780176156000,-498.61,0.00039242,30]
[423508366,1780176156000,-498.61,0.00039242,30]
[423508364,1780176156000,-498.61,0.00039242,30]
[423508363,1780176156000,-498.61,0.00039242,30]
[423508365,1780176156000,-498.61,0.00039242,30]
[423508361,1780176156000,-498.61,0.00039242,30]
[423508362,1780176156000,-498.61,0.00039242,30]
[423508359,1780176156000,-498.61,0.00039242,30]
[423508357,1780176156000,-498.61,0.00039242,30]
[423508356,1780176156000,-498.61,0.00039242,30]
[423508358,1780176156000,-498.61,0.00039242,30]
[423508355,1780176156000,-498.61,0.00039242,30]
[423508354,1780176156000,-498.61,0.00039242,30]
[423508373,1780176156000,-498.61,0.00039242,30]
[423508360,1780176156000,-498.61,0.00039242,30]
[423508375,1780176156000,-498.61,0.00039242,30]
[423508370,1780176156000,-498.61,0.00039242,30]
[423508377,1780176156000,-498.61,0.00039242,30]
[423508376,1780176156000,-498.61,0.00039242,30]
[423508396,1780176156000,-568.33,0.00039242,30]
[423508393,1780176156000,-813.60488806,0.00039242,31]
[423508395,1780176156000,-161.26370616,0.00039242,30]
[423508392,1780176156000,-800.0,0.00039242,31]
[423508394,1780176156000,-240.51,0.00039242,30]
[423508391,1780176156000,-800.0,0.00039242,31]
[423508390,1780176156000,-800.0,0.00039242,31]
[423508388,1780176156000,-50000.0,0.00039242,30]
[423508389,1780176156000,-60309.7379,0.00039242,60]
[423508398,1780176156000,-227.33,0.00039242,30]
[423508384,1780176156000,-498.61,0.00039242,30]
[423508385,1780176156000,-498.72,0.00039242,30]
[423508386,1780176156000,-152.14576022,0.00039242,30]
[423508383,1780176156000,-498.61,0.00039242,30]
[423508382,1780176156000,-498.61,0.00039242,30]
[423508397,1780176156000,-227.33,0.00039242,30]
[423508381,1780176156000,-498.61,0.00039242,30]
[423508380,1780176156000,-498.61,0.00039242,30]
[423508379,1780176156000,-498.61,0.00039242,30]
[423508378,1780176156000,-498.61,0.00039242,30]
[423508387,1780176156000,-50000.0,0.00039242,30]
[423508412,1780176157000,-1128.81962032,0.00039242,30]
[423508411,1780176157000,-2239.07618754,0.00039242,30]
[423508418,1780176157000,-166.13554159,0.00039242,30]
[423508416,1780176157000,-163.11668001,0.00039242,30]
[423508415,1780176157000,-764.61827823,0.00039242,30]
[423508417,1780176157000,-205.56479114,0.00039242,30]
[423508413,1780176157000,-1024.552401,0.00039242,30]
[423508414,1780176157000,-1072.37958446,0.00039242,30]
[423508410,1780176157000,-1239.12957426,0.00039242,30]
[423508401,1780176157000,-800.0,0.00039242,31]
[423508407,1780176157000,-800.0,0.00039242,31]
[423508406,1780176157000,-800.0,0.00039242,31]
[423508408,1780176157000,-800.0,0.00039242,31]
[423508403,1780176157000,-800.0,0.00039242,31]
[423508402,1780176157000,-800.0,0.00039242,31]
[423508404,1780176157000,-800.0,0.00039242,31]
[423508400,1780176157000,-800.0,0.00039242,31]
[423508399,1780176157000,-800.0,0.00039242,31]
[423508419,1780176157000,-2068.59985493,0.00039242,30]
[423508409,1780176157000,-5231.49834735,0.00039242,31]
[423508420,1780176157000,-319.70923903,0.00039242,30]
[423508405,1780176157000,-800.0,0.00039242,31]
[423508422,1780176157000,-501.18352889,0.00039242,90]
[423508423,1780176157000,-1975.50947355,0.00039242,30]
[423508443,1780176157000,-552.25612836,0.00039242,30]
[423508441,1780176157000,-904.34960546,0.00039242,30]
[423508438,1780176157000,-6726.00920897,0.00039242,90]
[423508439,1780176157000,-1432.35660769,0.00039242,30]
[423508440,1780176157000,-5044.40620194,0.00039242,30]
[423508437,1780176157000,-935.87622924,0.00039242,30]
[423508436,1780176157000,-160.80348784,0.00039242,30]
[423508435,1780176157000,-180.05,0.00039242,30]
[423508434,1780176157000,-1085.6035445,0.00039242,60]
[423508442,1780176157000,-1629.40073865,0.00039242,60]
[423508432,1780176157000,-1820.35937389,0.00039242,30]
[423508430,1780176157000,-2043.39256271,0.00039242,30]
[423508431,1780176157000,-553.34783122,0.00039242,30]
[423508429,1780176157000,-157.04585901,0.00039242,90]
[423508428,1780176157000,-1306.22050333,0.00039242,30]
[423508427,1780176157000,-732.7242095,0.00039242,30]
[423508426,1780176157000,-1148.41636587,0.00039242,30]
[423508425,1780176157000,-1807.44502138,0.00039242,30]
[423508424,1780176157000,-218.57811796,0.00039242,60]
[423508433,1780176157000,-295.59840432,0.00039242,60]
[423508421,1780176157000,-184.36622165,0.00039242,30]
[423508455,1780176158000,-4751.0047821,0.00039242,30]
[423508458,1780176158000,-1257.12887182,0.00039242,30]
[423508457,1780176158000,-2163.03465112,0.00039242,30]
[423508460,1780176158000,-810.8633871,0.00039242,30]
[423508461,1780176158000,-2276.48424258,0.00039242,50]
[423508462,1780176158000,-4029.67602586,0.00039242,30]
[423508456,1780176158000,-3534.29399292,0.00039242,30]
[423508459,1780176158000,-2966.24407781,0.00039242,30]
[423508454,1780176158000,-1870.5159805,0.00039242,30]
[423508448,1780176158000,-1354.96859857,0.00039242,30]
[423508450,1780176158000,-509.45270711,0.00039242,31]
[423508452,1780176158000,-771.5105948,0.00039242,30]
[423508451,1780176158000,-765.74952198,0.00039242,30]
[423508449,1780176158000,-214.90416636,0.00039242,60]
[423508446,1780176158000,-2195.11444997,0.00039242,30]
[423508447,1780176158000,-4461.2081729,0.00039242,30]
[423508445,1780176158000,-843.47166383,0.00039242,30]
[423508444,1780176158000,-925.89022772,0.00039242,60]
[423508463,1780176158000,-1134.96338195,0.00039242,30]
[423508453,1780176158000,-5286.21155636,0.00039242,30]
[423508466,1780176158000,-419.37473408,0.00039242,30]
[423508472,1780176158000,-2381.20221352,0.00039242,30]
[423508465,1780176158000,-3520.32522398,0.00039242,30]
[423508487,1780176158000,-363.81340927,0.00039242,30]
[423508486,1780176158000,-539.65140556,0.00039242,60]
[423508485,1780176158000,-822.06699514,0.00039242,90]
[423508483,1780176158000,-1955.12442097,0.00039242,90]
[423508484,1780176158000,-2002.17770515,0.00039242,60]
[423508464,1780176158000,-1879.53579379,0.00039242,30]
[423508481,1780176158000,-489.0,0.00039242,30]
[423508480,1780176158000,-3000.0,0.00039242,30]
[423508479,1780176158000,-25000.0,0.00039242,90]
[423508477,1780176158000,-3284.653812,0.00039242,60]
[423508482,1780176158000,-4878.27271576,0.00039242,60]
[423508476,1780176158000,-354.41645623,0.00039242,60]
[423508475,1780176158000,-622.39301768,0.00039242,30]
[423508474,1780176158000,-547.12548767,0.00039242,30]
[423508473,1780176158000,-3066.28258622,0.00039242,30]
[423508471,1780176158000,-3006.54555052,0.00039242,30]
[423508470,1780176158000,-18563.02809879,0.00039242,30]
[423508468,1780176158000,-462.56785115,0.00039242,35]
[423508469,1780176158000,-1004.77536788,0.00039242,30]
[423508467,1780176158000,-1435.15882328,0.00039242,30]
[423508478,1780176158000,-38276.26927564,0.00039242,75]
[423508500,1780176159000,-200.0,0.00039242,30]
[423508502,1780176159000,-200.0,0.00039242,30]
[423508499,1780176159000,-300.0,0.00039242,30]
[423508506,1780176159000,-200.0,0.00039242,30]
[423508503,1780176159000,-200.0,0.00039242,30]
[423508504,1780176159000,-200.0,0.00039242,30]
[423508505,1780176159000,-200.0,0.00039242,30]
[423508501,1780176159000,-200.0,0.00039242,30]
[423508495,1780176159000,-750.0,0.00039242,30]
[423508507,1780176159000,-200.0,0.00039242,30]
[423508498,1780176159000,-200.0,0.00039242,30]
[423508496,1780176159000,-276.36266455,0.00039242,30]
[423508494,1780176159000,-1700.70542927,0.00039242,30]
[423508493,1780176159000,-2046.38923115,0.00039242,30]
[423508491,1780176159000,-2474.10851637,0.00039242,30]
[423508492,1780176159000,-1332.43312395,0.00039242,90]
[423508490,1780176159000,-2669.32187321,0.00039242,60]
[423508489,1780176159000,-1357.65554078,0.00039242,31]
[423508488,1780176159000,-552.41616076,0.00039242,60]
[423508497,1780176159000,-200.0,0.00039242,30]
[423508508,1780176159000,-200.0,0.00039242,30]
[423508518,1780176159000,-200.0,0.00039242,30]
[423508509,1780176159000,-200.0,0.00039242,30]
[423508510,1780176159000,-200.0,0.00039242,30]
[423508531,1780176159000,-549.75,0.00039242,30]
[423508530,1780176159000,-549.75,0.00039242,30]
[423508529,1780176159000,-1030.81,0.00039242,30]
[423508527,1780176159000,-1030.79,0.00039242,30]
[423508526,1780176159000,-5128.0,0.00039242,30]
[423508524,1780176159000,-458.04,0.00039242,30]
[423508525,1780176159000,-549.64,0.00039242,30]
[423508523,1780176159000,-458.03,0.00039242,30]
[423508522,1780176159000,-458.03,0.00039242,30]
[423508528,1780176159000,-1030.79,0.00039242,30]
[423508520,1780176159000,-5129.03963455,0.00039242,30]
[423508519,1780176159000,-200.0,0.00039242,30]
[423508517,1780176159000,-200.0,0.00039242,30]
[423508513,1780176159000,-200.0,0.00039242,30]
[423508514,1780176159000,-200.0,0.00039242,30]
[423508515,1780176159000,-200.0,0.00039242,30]
[423508516,1780176159000,-200.0,0.00039242,30]
[423508512,1780176159000,-200.0,0.00039242,30]
[423508511,1780176159000,-200.0,0.00039242,30]
[423508521,1780176159000,-3542.775477,0.00039242,90]
[423508542,1780176160000,-636.38,0.00039242,60]
[423508541,1780176160000,-636.38,0.00039242,60]
[423508543,1780176160000,-636.38,0.00039242,60]
[423508538,1780176160000,-1272.77,0.00039242,60]
[423508536,1780176160000,-1272.77,0.00039242,60]
[423508533,1780176160000,-206.84,0.00039242,30]
[423508537,1780176160000,-1272.77,0.00039242,60]
[423508534,1780176160000,-225.16779661,0.00039242,30]
[423508532,1780176160000,-549.77,0.00039242,30]
[423508535,1780176160000,-1272.77,0.00039242,60]
[423508540,1780176160000,-636.38,0.00039242,60]
[423508539,1780176160000,-1272.77,0.00039242,60]
[423508544,1780176160000,-636.38,0.00039242,60]
[423508546,1780176160000,-500.0,0.00039242,60]
[423508545,1780176160000,-120600.0,0.00039242,30]
[423508558,1780176160000,-568.33,0.00039242,30]
[423508557,1780176160000,-473.63,0.00039242,30]
[423508553,1780176160000,-298.03872309,0.00039242,30]
[423508555,1780176160000,-473.61,0.00039242,30]
[423508556,1780176160000,-473.61,0.00039242,30]
[423508554,1780176160000,-2000.0,0.00039242,90]
[423508551,1780176160000,-681.97,0.00039242,60]
[423508549,1780176160000,-500.0,0.00039242,60]
[423508552,1780176160000,-899.28,0.00039242,30]
[423508548,1780176160000,-500.0,0.00039242,60]
[423508547,1780176160000,-500.0,0.00039242,60]
[423508550,1780176160000,-500.0,0.00039242,60]
[423508567,1780176161000,-3201.57457999,0.00039242,60]
[423508576,1780176161000,-206.84,0.00039242,30]
[423508577,1780176161000,-50000.0,0.00039242,55]
[423508574,1780176161000,-2016.19864301,0.00039242,30]
[423508573,1780176161000,-56703.51480653,0.00039242,90]
[423508571,1780176161000,-2259.87735489,0.00039242,30]
[423508572,1780176161000,-1334.0,0.00039242,30]
[423508570,1780176161000,-15729.0,0.00039242,30]
[423508569,1780176161000,-730.13650393,0.00039242,30]
[423508563,1780176161000,-2731.97886568,0.00039242,30]
[423508566,1780176161000,-180.05,0.00039242,30]
[423508565,1780176161000,-540.17,0.00039242,30]
[423508564,1780176161000,-1528.2169007,0.00039242,31]
[423508562,1780176161000,-318.26,0.00039242,30]
[423508575,1780176161000,-620.54,0.00039242,30]
[423508561,1780176161000,-227.33,0.00039242,30]
[423508559,1780176161000,-192.41,0.00039242,30]
[423508560,1780176161000,-19796.21065325,0.00039242,30]
[423508568,1780176161000,-2504.78346357,0.00039242,60]
[423508578,1780176161000,-50000.0,0.00039242,56]
[423508591,1780176161000,-397.83,0.00039242,30]
[423508581,1780176161000,-50000.0,0.00039242,59]
[423508599,1780176161000,-400.0,0.00039242,30]
[423508580,1780176161000,-50000.0,0.00039242,58]
[423508598,1780176161000,-400.0,0.00039242,30]
[423508596,1780176161000,-400.0,0.00039242,30]
[423508595,1780176161000,-400.0,0.00039242,30]
[423508597,1780176161000,-400.0,0.00039242,30]
[423508593,1780176161000,-400.0,0.00039242,30]
[423508592,1780176161000,-400.0,0.00039242,30]
[423508590,1780176161000,-397.83,0.00039242,30]
[423508594,1780176161000,-400.0,0.00039242,30]
[423508589,1780176161000,-1000.0,0.00039242,30]
[423508588,1780176161000,-1500.0,0.00039242,30]
[423508586,1780176161000,-577.26,0.00039242,30]
[423508582,1780176161000,-53110.66789952,0.00039242,95]
[423508584,1780176161000,-3000.0,0.00039242,30]
[423508585,1780176161000,-3600.0,0.00039242,90]
[423508587,1780176161000,-192.41,0.00039242,30]
[423508583,1780176161000,-232839.36749478,0.00039242,60]
[423508579,1780176161000,-50000.0,0.00039242,57]
[423508613,1780176162000,-400.0,0.00039242,30]
[423508612,1780176162000,-400.0,0.00039242,30]
[423508614,1780176162000,-400.0,0.00039242,30]
[423508616,1780176162000,-400.0,0.00039242,30]
[423508619,1780176162000,-400.0,0.00039242,30]
[423508611,1780176162000,-400.0,0.00039242,30]
[423508618,1780176162000,-400.0,0.00039242,30]
[423508617,1780176162000,-400.0,0.00039242,30]
[423508610,1780176162000,-400.0,0.00039242,30]
[423508601,1780176162000,-400.0,0.00039242,30]
[423508608,1780176162000,-400.0,0.00039242,30]
[423508607,1780176162000,-240.25304902,0.00039242,30]
[423508606,1780176162000,-400.0,0.00039242,30]
[423508604,1780176162000,-400.0,0.00039242,30]
[423508605,1780176162000,-400.0,0.00039242,30]
[423508603,1780176162000,-400.0,0.00039242,30]
[423508602,1780176162000,-400.0,0.00039242,30]
[423508600,1780176162000,-400.0,0.00039242,30]
[423508620,1780176162000,-400.0,0.00039242,30]
[423508609,1780176162000,-400.0,0.00039242,30]
[423508621,1780176162000,-400.0,0.00039242,30]
[423508615,1780176162000,-400.0,0.00039242,30]
[423508622,1780176162000,-400.0,0.00039242,30]
[423508623,1780176162000,-400.0,0.00039242,30]
[423508643,1780176162000,-400.0,0.00039242,30]
[423508641,1780176162000,-400.0,0.00039242,30]
[423508642,1780176162000,-400.0,0.00039242,30]
[423508639,1780176162000,-400.0,0.00039242,30]
[423508640,1780176162000,-400.0,0.00039242,30]
[423508637,1780176162000,-400.0,0.00039242,30]
[423508636,1780176162000,-400.0,0.00039242,30]
[423508634,1780176162000,-400.0,0.00039242,30]
[423508635,1780176162000,-400.0,0.00039242,30]
[423508638,1780176162000,-400.0,0.00039242,30]
[423508632,1780176162000,-400.0,0.00039242,30]
[423508630,1780176162000,-400.0,0.00039242,30]
[423508631,1780176162000,-400.0,0.00039242,30]
[423508629,1780176162000,-400.0,0.00039242,30]
[423508627,1780176162000,-400.0,0.00039242,30]
[423508626,1780176162000,-400.0,0.00039242,30]
[423508628,1780176162000,-400.0,0.00039242,30]
[423508625,1780176162000,-400.0,0.00039242,30]
[423508633,1780176162000,-400.0,0.00039242,30]
[423508624,1780176162000,-400.0,0.00039242,30]
[423508657,1780176163000,-16204.53732914,0.00039242,30]
[423508659,1780176163000,-1029.9863,0.00039242,30]
[423508658,1780176163000,-48299.13663591,0.00039242,49]
[423508662,1780176163000,-203.4570875,0.00039242,30]
[423508661,1780176163000,-32031.3226152,0.00039242,30]
[423508664,1780176163000,-15569.14966995,0.00039242,30]
[423508656,1780176163000,-19262.55907311,0.00039242,30]
[423508660,1780176163000,-579.0,0.00039242,30]
[423508655,1780176163000,-50000.0,0.00039242,62]
[423508645,1780176163000,-400.0,0.00039242,30]
[423508654,1780176163000,-705397.71,0.00039242,30]
[423508652,1780176163000,-50000.0,0.00039242,60]
[423508650,1780176163000,-400.0,0.00039242,30]
[423508651,1780176163000,-400.0,0.00039242,30]
[423508649,1780176163000,-416.66959405,0.00039242,30]
[423508648,1780176163000,-400.0,0.00039242,30]
[423508647,1780176163000,-400.0,0.00039242,30]
[423508644,1780176163000,-400.0,0.00039242,30]
[423508663,1780176163000,-12500.0,0.00039242,30]
[423508653,1780176163000,-50000.0,0.00039242,61]
[423508665,1780176163000,-656.63175987,0.00039242,31]
[423508646,1780176163000,-400.0,0.00039242,30]
[423508667,1780176163000,-1124.0,0.00039242,30]
[423508666,1780176163000,-1124.0,0.00039242,30]
[423508687,1780176163000,-150.7,0.00039242,30]
[423508685,1780176163000,-150.7,0.00039242,30]
[423508686,1780176163000,-150.7,0.00039242,30]
[423508684,1780176163000,-150.7,0.00039242,30]
[423508683,1780176163000,-150.7,0.00039242,30]
[423508681,1780176163000,-329.85,0.00039242,30]
[423508679,1780176163000,-276.72,0.00039242,30]
[423508680,1780176163000,-1009.30787641,0.00039242,30]
[423508675,1780176163000,-6473.56754504,0.00039242,30]
[423508682,1780176163000,-150.7,0.00039242,30]
[423508674,1780176163000,-5121.30826844,0.00039242,30]
[423508677,1780176163000,-318.26,0.00039242,30]
[423508676,1780176163000,-162202.28889493,0.00039242,61]
[423508672,1780176163000,-100000.0,0.00039242,30]
[423508673,1780176163000,-2475.49057469,0.00039242,60]
[423508670,1780176163000,-1124.0,0.00039242,30]
[423508671,1780176163000,-100000.0,0.00039242,30]
[423508669,1780176163000,-1124.0,0.00039242,30]
[423508678,1780176163000,-4877.95040101,0.00039242,31]
[423508668,1780176163000,-1124.0,0.00039242,30]
[423508700,1780176164000,-150.7,0.00039242,30]
[423508701,1780176164000,-150.7,0.00039242,30]
[423508703,1780176164000,-150.7,0.00039242,30]
[423508705,1780176164000,-150.7,0.00039242,30]
[423508704,1780176164000,-150.7,0.00039242,30]
[423508707,1780176164000,-150.7,0.00039242,30]
[423508699,1780176164000,-150.7,0.00039242,30]
[423508702,1780176164000,-150.7,0.00039242,30]
[423508698,1780176164000,-150.7,0.00039242,30]
[423508688,1780176164000,-150.7,0.00039242,30]
[423508697,1780176164000,-150.7,0.00039242,30]
[423508695,1780176164000,-150.7,0.00039242,30]
[423508692,1780176164000,-150.7,0.00039242,30]
[423508694,1780176164000,-150.7,0.00039242,30]
[423508693,1780176164000,-150.7,0.00039242,30]
[423508691,1780176164000,-150.7,0.00039242,30]
[423508689,1780176164000,-150.7,0.00039242,30]
[423508690,1780176164000,-150.7,0.00039242,30]
[423508706,1780176164000,-150.7,0.00039242,30]
[423508696,1780176164000,-150.7,0.00039242,30]
[423508708,1780176164000,-150.7,0.00039242,30]
[423508712,1780176164000,-150.7,0.00039242,30]
[423508709,1780176164000,-150.7,0.00039242,30]
[423508730,1780176164000,-150.7,0.00039242,30]
[423508727,1780176164000,-150.7,0.00039242,30]
[423508710,1780176164000,-150.7,0.00039242,30]
[423508729,1780176164000,-150.7,0.00039242,30]
[423508726,1780176164000,-150.7,0.00039242,30]
[423508722,1780176164000,-150.7,0.00039242,30]
[423508725,1780176164000,-150.7,0.00039242,30]
[423508723,1780176164000,-150.7,0.00039242,30]
[423508724,1780176164000,-150.7,0.00039242,30]
[423508728,1780176164000,-150.7,0.00039242,30]
[423508720,1780176164000,-150.7,0.00039242,30]
[423508721,1780176164000,-150.7,0.00039242,30]
[423508717,1780176164000,-150.7,0.00039242,30]
[423508719,1780176164000,-150.7,0.00039242,30]
[423508713,1780176164000,-150.7,0.00039242,30]
[423508714,1780176164000,-150.7,0.00039242,30]
[423508716,1780176164000,-150.7,0.00039242,30]
[423508715,1780176164000,-150.7,0.00039242,30]
[423508711,1780176164000,-150.7,0.00039242,30]
[423508718,1780176164000,-150.7,0.00039242,30]
[423508743,1780176165000,-150.7,0.00039242,30]
[423508744,1780176165000,-150.7,0.00039242,30]
[423508742,1780176165000,-150.7,0.00039242,30]
[423508739,1780176165000,-150.7,0.00039242,30]
[423508740,1780176165000,-150.7,0.00039242,30]
[423508741,1780176165000,-150.7,0.00039242,30]
[423508734,1780176165000,-150.7,0.00039242,30]
[423508736,1780176165000,-150.7,0.00039242,30]
[423508737,1780176165000,-150.7,0.00039242,30]
[423508738,1780176165000,-150.7,0.00039242,30]
[423508733,1780176165000,-150.7,0.00039242,30]
[423508731,1780176165000,-150.7,0.00039242,30]
[423508732,1780176165000,-150.7,0.00039242,30]
[423508735,1780176165000,-150.7,0.00039242,30]
[423508747,1780176165000,-150.7,0.00039242,30]
[423508750,1780176165000,-269.44068186,0.00039242,30]
[423508745,1780176165000,-150.7,0.00039242,30]
[423508746,1780176165000,-150.7,0.00039242,30]
[423508762,1780176165000,-1460602.92545001,0.00039242,30]
[423508760,1780176165000,-3999.999999,0.00039242,30]
[423508759,1780176165000,-1353088.44226147,0.00039242,30]
[423508758,1780176165000,-273074.00599214,0.00039242,30]